bitfinex-derivatives/quotes_SOLF0:USTF0_20251216
["timestamp","ask_amount","ask_price","bid_price","bid_amount"]
[1765866136353,0.05275984,126.87,126.84,0.05512153]
[1765866136654,7.0962,126.86,126.84,0.05512153]
[1765866149162,0.05275984,126.87,126.84,0.05512153]
[1765866149163,0.05275984,126.87,126.84,3.14512153]
[1765866157461,0.05275984,126.87,126.84,5.76853138]
[1765866157664,0.05275984,126.87,126.85,3.39]
[1765866158269,0.05275984,126.87,126.86,6.01340985]
[1765866159675,0.05275984,126.87,126.86,3.39]
[1765866159863,0.05275984,126.87,126.86,6.01340985]
[1765866162169,7.0928,126.92,126.87,3.39]
[1765866162473,7.0928,126.92,126.89,3.39]
[1765866162977,7.092,126.94,126.89,3.39]
[1765866163164,112.93530985,126.95,126.9,0.05304574]
[1765866163363,112.93530985,126.95,126.9,3.44304574]
[1765866163871,7.0921,126.93,126.9,3.44304574]
[1765866166464,7.0927,126.92,126.9,3.44304574]
[1765866166664,7.0927,126.92,126.9,0.05304574]
[1765866166872,7.0927,126.92,126.9,3.44304574]
[1765866167582,7.0918,126.94,126.9,3.44304574]
[1765866172076,7.0908,126.96,126.92,3.39]
[1765866172272,112.91750985,126.97,126.93,3.4498865]
[1765866172582,112.91750985,126.97,126.93,0.0598865]
[1765866173880,7.091,126.95,126.93,0.0598865]
[1765866176283,2.62340985,126.94,126.93,0.0598865]
[1765866176679,7.091,126.95,126.93,0.0598865]
[1765866176980,2.62340985,126.94,126.93,0.0598865]
[1765866179485,110.331,126.92,126.88,3.39]
[1765866179781,112.95440985,126.92,126.88,3.39]
[1765866179983,7.0939,126.9,126.88,3.39]
[1765866180375,7.0939,126.9,126.88,3.44623655]
[1765866180376,7.15204688,126.9,126.88,3.44623655]
[1765866181581,0.05814688,126.9,126.88,6.0696464]
[1765866181782,0.05814688,126.9,126.89,3.39]
[1765866183572,7.0917,126.94,126.89,3.39]
[1765866183776,7.0917,126.94,126.91,3.07]
[1765866184576,7.0917,126.94,126.91,3.13058622]
[1765866186786,7.0921,126.93,126.91,3.13058622]
[1765866187585,7.0921,126.93,126.91,0.06058622]
[1765866193586,7.0921,126.93,126.91,3.13058622]
[1765866193986,7.0921,126.93,126.91,0.06058622]
[1765866194794,9.71550985,126.93,126.91,0.06058622]
[1765866196694,7.0921,126.93,126.91,3.13058622]
[1765866197694,7.0921,126.93,126.91,0.06058622]
[1765866201096,7.0921,126.93,126.91,3.13058622]
[1765866206113,7.0921,126.93,126.91,0.06058622]
[1765866206898,7.0921,126.93,126.91,3.13058622]
[1765866207601,7.0921,126.93,126.91,0.06058622]
[1765866208100,9.7141617,126.93,126.91,0.06058622]
[1765866215212,7.0921,126.93,126.91,0.06058622]
[1765866221721,7.0921,126.93,126.91,3.46058622]
[1765866223312,7.0921,126.93,126.91,0.06058622]
[1765866231019,7.0921,126.93,126.86,3.4]
[1765866231020,7.0945,126.89,126.86,3.4]
[1765866231821,7.14778148,126.89,126.86,3.45947186]
[1765866243614,0.05328148,126.89,126.86,7.5560366]
[1765866243818,0.05328148,126.89,126.87,3.15]
[1765866249334,7.0919,126.94,126.88,3.15]
[1765866249633,7.0919,126.94,126.89,3.15]
[1765866250524,0.02628441,126.93,126.9,3.20395711]
[1765866253940,7.0926,126.92,126.9,3.20395711]
[1765866258654,0.02628441,126.93,126.9,3.20395711]
[1765866277046,110.35018441,126.93,126.9,0.05395711]
[1765866277851,7.0929,126.92,126.9,0.05395711]
[1765866280857,7.0929,126.92,126.9,3.24395711]
[1765866284258,0.02628441,126.93,126.91,3.19]
[1765866293683,7.11858441,126.93,126.91,3.19]
[1765866295380,7.0927,126.92,126.9,3.24395711]
[1765866301086,0.02628441,126.93,126.9,3.24395711]
[1765866302488,7.11838441,126.93,126.9,3.24395711]
[1765866304187,7.11838441,126.93,126.91,3.19]
[1765866315986,7.0926,126.92,126.9,3.24395711]
[1765866324893,7.0926,126.92,126.9,0.05395711]
[1765866325098,7.0926,126.92,126.9,3.24395711]
[1765866332898,0.02628441,126.93,126.9,3.24395711]
[1765866333599,7.0932,126.91,126.9,3.24395711]
[1765866339611,0.02628441,126.93,126.9,3.24395711]
[1765866341010,7.11838441,126.93,126.9,3.24395711]
[1765866343216,7.11838441,126.93,126.91,3.26]
[1765866346615,0.02628441,126.93,126.91,3.26]
[1765866348608,0.02628441,126.93,126.91,10.3531]
[1765866348816,7.0908,126.96,126.93,3.26]
[1765866349810,7.0908,126.96,126.93,3.31692363]
[1765866350016,7.0898,126.98,126.93,3.31692363]
[1765866351304,7.0898,126.98,126.93,10.40892363]
[1765866351511,7.0898,126.98,126.94,3.26]
[1765866352820,7.0899,126.97,126.94,3.26]
[1765866353023,7.0899,126.97,126.94,3.31464834]
[1765866360625,7.0899,126.97,126.96,3.26]
[1765866361918,7.0899,126.97,126.95,4.09576235]
[1765866362124,7.0899,126.97,126.96,3.26]
[1765866365023,7.0891,126.99,126.96,3.26]
[1765866365225,7.0891,126.99,126.96,3.3198269]
[1765866365829,7.0891,126.99,126.98,3.19]
[1765866366027,7.0876,127.01,126.98,3.19]
[1765866366228,7.0876,127.01,126.98,3.2406021]
[1765866372027,7.0883,127.0,126.98,0.0506021]
[1765866374431,7.0883,127.0,126.98,3.2406021]
[1765866376727,110.2381,127.03,126.98,3.2406021]
[1765866376928,110.2267,127.04,126.98,3.2406021]
[1765866377635,7.0876,127.01,126.98,3.2406021]
[1765866378633,7.0884,127.0,126.98,3.2406021]
[1765866378935,7.0884,127.0,126.98,0.0506021]
[1765866384038,7.0875,127.02,126.98,0.0506021]
[1765866384538,114.33556235,127.03,126.98,0.0506021]
[1765866386046,7.0876,127.01,126.98,0.0506021]
[1765866387946,7.0874,127.02,126.98,0.0506021]
[1765866388647,7.0876,127.01,126.98,0.0506021]
[1765866391642,7.0885,127.0,126.98,0.0506021]
[1765866397549,4.09576235,127.01,126.98,0.0506021]
[1765866397957,110.246,127.02,126.98,0.0506021]
[1765866398143,121.68358382,127.05,126.98,3.1506021]
[1765866398349,11.27947734,127.04,126.98,3.1506021]
[1765866398650,7.0866,127.03,126.98,3.1506021]
[1765866404362,7.0871,127.02,126.98,3.1506021]
[1765866410865,7.0864,127.04,126.98,3.1506021]
[1765866411163,9.70437846,127.04,127.0,3.1]
[1765866411456,7.0864,127.04,127.02,3.1]
[1765866411663,7.0852,127.06,127.02,3.1]
[1765866419067,110.1968,127.08,127.02,3.1]
[1765866419068,7.0854,127.05,127.02,3.1]
[1765866419267,7.0854,127.05,127.02,3.15765513]
[1765866420068,7.0847,127.07,127.04,3.1]
[1765866420574,110.1715,127.11,127.06,3.1]
[1765866420868,112.78947846,127.11,127.07,0.05484271]
[1765866421069,7.0837,127.08,127.07,0.05484271]
[1765866426071,7.0837,127.08,127.07,3.34484271]
[1765866426472,7.0837,127.08,127.07,0.05484271]
[1765866428682,7.0837,127.08,127.07,3.34484271]
[1765866430490,7.083,127.1,127.07,3.34484271]
[1765866431984,7.083,127.1,127.08,5.90797846]
[1765866434188,11.0221301,127.12,127.09,3.29]
[1765866434391,11.0221301,127.12,127.1,2.61797846]
[1765866434591,11.0221301,127.12,127.1,2.67319267]
[1765866434993,11.0221301,127.12,127.1,0.05521421]
[1765866437094,2.61797846,127.11,127.1,0.05521421]
[1765866437487,11.0221301,127.12,127.1,0.05521421]
[1765866437689,13.64010856,127.12,127.1,0.05521421]
[1765866438892,7.0836,127.09,127.06,3.29]
[1765866439196,2.61797846,127.1,127.05,5.90797846]
[1765866439397,112.79477846,127.1,127.05,3.29]
[1765866439789,110.1768,127.1,127.05,3.29]
[1765866439989,7.0838,127.08,127.06,0.05283759]
[1765866441102,7.0838,127.08,127.06,3.34283759]
[1765866443488,9.70177846,127.08,127.06,0.05283759]
[1765866446695,7.0838,127.08,127.06,3.34283759]
[1765866447394,7.0838,127.08,127.06,0.05283759]
[1765866447789,0.05289499,127.09,127.06,3.34283759]
[1765866448390,7.13619499,127.09,127.06,3.34283759]
[1765866453906,9.70177846,127.08,127.06,0.05283759]
[1765866454611,7.0838,127.08,127.06,0.05283759]
[1765866454905,9.70177846,127.08,127.06,0.05283759]
[1765866460705,7.0838,127.08,127.06,3.33283759]
[1765866462793,0.05289499,127.09,127.06,3.33283759]
[1765866463907,7.13609499,127.09,127.06,3.33283759]
[1765866466808,0.05289499,127.09,127.08,3.28]
[1765866467395,0.05289499,127.09,127.07,3.28]
[1765866468808,7.13619499,127.09,127.07,3.28]
[1765866469213,0.05289499,127.09,127.06,3.33283759]
[1765866470217,7.0842,127.08,127.06,3.33283759]
[1765866471709,7.0842,127.08,127.06,0.05283759]
[1765866481622,7.0842,127.08,127.06,3.33283759]
[1765866481927,0.05289499,127.09,127.06,3.33283759]
[1765866482426,0.05289499,127.09,127.08,3.36]
[1765866483331,3.9402301,127.12,127.09,3.36]
[1765866484218,11.0218301,127.12,127.09,3.36]
[1765866484523,3.9402301,127.12,127.09,3.41424222]
[1765866484725,7.0822,127.11,127.09,3.41424222]
[1765866485122,7.0822,127.11,127.09,0.05424222]
[1765866488625,7.0851,127.06,127.03,70.28]
[1765866488828,7.0851,127.06,127.04,3.36]
[1765866489321,7.0851,127.06,127.03,70.28]
[1765866489521,7.0838,127.08,127.04,3.36]
[1765866489822,0.05216851,127.07,127.05,0.05961425]
[1765866490829,7.13666851,127.07,127.05,0.05961425]
[1765866497940,7.0868,127.03,127.01,3.36]
[1765866498440,7.0873,127.02,126.99,3.36]
[1765866498827,0.05040701,127.02,126.99,3.41772863]
[1765866499531,117.3397,127.01,126.99,0.05772863]
[1765866500537,184.2397,127.01,126.99,0.05772863]
[1765866502833,117.3397,127.01,126.99,0.05772863]
[1765866510936,7.0878,127.01,126.97,4.08765277]
[1765866511841,0.04996535,127.0,126.98,0.05263706]
[1765866512536,7.13826535,127.0,126.98,0.05263706]
[1765866512939,7.13826535,127.0,126.98,3.22263706]
[1765866517045,7.13826535,127.0,126.98,0.05263706]
[1765866529354,9.75797195,127.0,126.98,0.05263706]
[1765866537076,2.6197066,126.99,126.98,0.05263706]
[1765866539777,7.13826535,127.0,126.98,0.05263706]
[1765866539977,2.6197066,126.99,126.98,0.05263706]
[1765866546179,7.13826535,127.0,126.98,0.05263706]
[1765866546180,7.13826535,127.0,126.98,3.19263706]
[1765866553579,7.13826535,127.0,126.98,0.05263706]
[1765866558888,9.75654831,127.0,126.98,0.05263706]
[1765866563689,7.13826535,127.0,126.98,0.05263706]
[1765866563887,7.13826535,127.0,126.98,3.19263706]
[1765866577798,7.13826535,127.0,126.98,0.05263706]
[1765866578302,7.13826535,127.0,126.98,3.41263706]
[1765866582202,7.13826535,127.0,126.98,6.03092002]
[1765866583701,7.13826535,127.0,126.98,3.41263706]
[1765866584106,0.04996535,127.0,126.98,3.41263706]
[1765866594012,0.04996535,127.0,126.99,3.36]
[1765866594303,0.04996535,127.0,126.99,17.96794079]
[1765866594502,0.04996535,127.0,126.99,3.36]
[1765866595600,7.0868,127.03,126.99,3.36]
[1765866596711,0.05371013,127.02,126.99,3.36]
[1765866597404,0.05371013,127.02,126.99,45.96794079]
[1765866597602,0.05371013,127.02,127.0,3.36]
[1765866601512,0.05371013,127.02,127.01,3.36]
[1765866606209,0.00371013,127.02,127.01,3.36]
[1765866619424,0.00371013,127.02,126.98,66.99263706]
[1765866619626,0.00371013,127.02,126.99,3.33]
[1765866620230,0.00371013,127.02,127.0,3.33]
[1765866620926,7.09081013,127.02,127.0,3.33]
[1765866623127,7.0876,127.01,126.98,74.41102192]
[1765866623923,7.0882,127.0,126.98,66.99263706]
[1765866624430,7.0882,127.0,126.98,70.32263706]
[1765866625133,7.0882,127.0,126.98,66.99263706]
[1765866629422,7.0882,127.0,126.98,0.05263706]
[1765866631043,7.0882,127.0,126.98,3.38263706]
[1765866634034,7.0882,127.0,126.98,0.05263706]
[1765866638137,8.6682,127.0,126.98,0.05263706]
[1765866638343,7.09,126.97,126.95,3.2]
[1765866639236,7.15047962,126.97,126.95,3.2557947]
[1765866642635,7.15047962,126.97,126.95,0.0557947]
[1765866644948,7.15047962,126.97,126.95,3.2557947]
[1765866649047,0.06047962,126.97,126.96,7.28838486]
[1765866651347,0.06047962,126.97,126.96,5.8182414]
[1765866658050,0.06047962,126.97,126.96,3.2]
[1765866661653,7.15077962,126.97,126.95,5.8740361]
[1765866661954,7.15077962,126.97,126.95,0.0557947]
[1765866662352,9.76902102,126.97,126.95,0.0557947]
[1765866663959,7.15077962,126.97,126.95,0.0557947]
[1765866664157,7.15077962,126.97,126.95,3.4057947]
[1765866664365,0.06047962,126.97,126.96,5.9682414]
[1765866675864,0.00047962,126.97,126.96,5.9682414]
[1765866682663,0.00047962,126.97,126.96,3.35]
[1765866682870,0.00047962,126.97,126.96,5.9682414]
[1765866683165,0.00047962,126.97,126.96,5.96881711]
[1765866694271,0.00047962,126.97,126.96,20.5767579]
[1765866694476,110.2403,127.03,126.97,3.3]
[1765866694678,112.85211711,127.04,126.99,3.3]
[1765866695474,0.05965301,127.03,127.0,3.32464474]
[1765866695972,7.0872,127.02,127.0,3.32464474]
[1765866702682,0.05965301,127.03,127.01,3.27]
[1765866702883,0.05965301,127.03,127.02,5.88881711]
[1765866704979,7.087,127.02,127.0,3.32464474]
[1765866707984,7.0852,127.06,127.02,3.27]
[1765866708281,110.1913,127.08,127.05,5.88881711]
[1765866709078,7.0844,127.07,127.05,5.9430546]
[1765866711385,7.0844,127.07,127.05,3.32423749]
[1765866711586,7.0836,127.09,127.05,3.32423749]
[1765866711778,110.1743,127.1,127.05,3.32423749]
[1765866712888,7.0839,127.08,127.05,3.32423749]
[1765866721487,7.0843,127.07,127.05,0.05423749]
[1765866722191,7.0843,127.07,127.05,3.24423749]
[1765866724591,7.0843,127.07,127.05,0.05423749]
[1765866727097,7.0843,127.07,127.05,3.24423749]
[1765866727395,7.0843,127.07,127.05,0.05423749]
[1765866727606,7.0843,127.07,127.05,3.24423749]
[1765866727791,7.0843,127.07,127.05,0.05423749]
[1765866728001,7.0843,127.07,127.06,3.19]
[1765866728197,7.0843,127.07,127.05,3.24423749]
[1765866732494,7.0843,127.07,127.05,0.05423749]
[1765866739191,110.2217,127.05,127.0,3.19]
[1765866739697,110.2288,127.04,127.0,3.19]
[1765866740002,7.0874,127.02,127.0,3.19]
[1765866740202,7.14627781,127.02,127.0,3.24987768]
[1765866750407,0.05887781,127.02,127.0,3.24987768]
[1765866756214,0.05887781,127.02,127.0,17.85781847]
[1765866756401,0.05887781,127.02,127.01,3.33]
[1765866766321,7.14597781,127.02,127.0,3.38987768]
[1765866768924,7.14597781,127.02,127.0,0.05987768]
[1765866770428,7.14597781,127.02,127.0,3.38987768]
[1765866771026,7.14597781,127.02,127.0,0.05987768]
[1765866776429,7.14597781,127.02,127.0,3.38987768]
[1765866781529,0.05887781,127.02,127.0,3.38987768]
[1765866781832,0.05887781,127.02,127.01,5.94792526]
[1765866786034,7.0852,127.06,127.01,5.94792526]
[1765866786236,110.2075,127.07,127.02,3.39]
[1765866787025,110.2075,127.07,127.03,3.44865576]
[1765866787942,7.0854,127.05,127.03,3.44865576]
[1765866788635,7.0849,127.06,127.03,3.44865576]
[1765866788829,7.0849,127.06,127.05,3.39]
[1765866789830,7.0849,127.06,127.04,6.00792526]
[1765866792432,7.084,127.08,127.05,3.39]
[1765866792622,7.084,127.08,127.05,3.44308445]
[1765866809750,7.0843,127.07,127.05,0.05308445]
[1765866810663,7.0848,127.06,127.05,0.05308445]
[1765866813861,110.1853,127.09,127.05,3.33308445]
[1765866814858,7.0843,127.07,127.05,3.33308445]
[1765866815257,7.0843,127.07,127.05,0.05308445]
[1765866821068,9.70006249,127.07,127.05,0.05308445]
[1765866823572,7.0843,127.07,127.05,0.05308445]
[1765866824367,2.61576249,127.06,127.05,0.05308445]
[1765866824568,110.2183,127.05,126.98,17.88794079]
[1765866824863,223.08016249,127.04,126.98,3.28]
[1765866825063,7.0878,127.01,126.98,3.28]
[1765866825264,110.2385,127.03,126.98,3.28]
[1765866825667,0.05167451,127.02,126.99,0.05205874]
[1765866826172,7.0882,127.0,126.99,0.05205874]
[1765866826372,7.0882,127.0,126.99,3.33205874]
[1765866827571,7.0882,127.0,126.99,0.05205874]
[1765866840783,7.13907451,127.02,126.99,3.33205874]
[1765866841284,7.0876,127.01,126.99,3.33205874]
[1765866841480,7.0876,127.01,126.99,0.05205874]
[1765866842783,11.1785739,127.01,126.99,0.05205874]
[1765866847882,7.0876,127.01,126.99,0.05205874]
[1765866873313,11.1785739,127.01,126.99,0.05205874]
[1765866877510,7.0876,127.01,126.99,0.05205874]
[1765866879811,7.0876,127.01,126.99,3.35205874]
[1765866899745,7.0881,127.0,126.99,0.05205874]
[1765866902053,7.0881,127.0,126.99,3.35205874]
[1765866902650,7.13917451,127.02,126.99,3.35205874]
[1765866903256,7.13917451,127.02,127.0,3.4]
[1765866904165,7.13917451,127.02,126.99,2.66970611]
[1765866904166,0.00167451,127.02,127.01,6.01764737]
[1765866905862,0.00167451,127.02,127.01,3.4]
[1765866906059,0.00167451,127.02,127.01,6.01764737]
[1765866906648,0.00167451,127.02,127.01,3.4]
[1765866912862,7.08897451,127.02,127.0,3.4]
[1765866920567,0.00167451,127.02,127.0,3.4]
[1765866921563,7.08877451,127.02,127.0,3.4]
[1765866927366,0.00167451,127.02,126.99,3.45205874]
[1765866927570,2.61932188,127.02,126.99,3.45205874]
[1765866928972,7.0876,127.01,126.99,3.45205874]
[1765866929173,7.0876,127.01,126.99,0.05205874]
[1765866929964,2.61764737,127.0,126.99,0.05205874]
[1765866935475,7.0876,127.01,126.99,0.05205874]
[1765866935774,7.0876,127.01,126.99,3.41205874]
[1765866940771,0.00167451,127.02,126.99,3.41205874]
[1765866941182,0.00167451,127.02,127.01,3.36]
[1765866948189,0.00167451,127.02,127.01,2.61764737]
[1765866949981,0.00167451,127.02,127.0,66.94]
[1765866950180,0.00167451,127.02,127.01,2.61764737]
[1765866952185,0.00167451,127.02,127.0,69.55675567]
[1765866952390,0.00167451,127.02,127.01,3.36]
[1765866962200,0.00167451,127.02,127.01,4.08862547]
[1765866963698,0.00167451,127.02,127.01,32.08862547]
[1765866970895,0.00167451,127.02,127.01,4.08862547]
[1765866971100,3.9402301,127.12,127.06,4.08862547]
[1765866971300,3.9402301,127.12,127.07,66.92]
[1765866971495,3.9402301,127.12,127.08,3.38]
[1765866972089,3.9402301,127.12,127.09,3.4387917]
[1765866973503,11.0218301,127.12,127.09,3.4387917]
[1765866975401,7.0822,127.11,127.09,0.0587917]
[1765866975792,8.6622,127.11,127.09,0.0587917]
[1765866978797,7.0822,127.11,127.09,0.0587917]
[1765866979896,4.08862547,127.1,127.09,0.0587917]
[1765866980107,110.192,127.08,127.03,3.38]
[1765866980308,114.28062547,127.08,127.03,3.38]
[1765866980496,110.192,127.08,127.03,3.38]
[1765866980802,110.1905,127.09,127.03,3.38]
[1765866981199,0.05121721,127.07,127.05,3.43529089]
[1765866982307,7.13561721,127.07,127.05,3.43529089]
[1765866988017,7.13561721,127.07,127.05,0.05529089]
[1765866988811,7.13561721,127.07,127.05,3.43529089]
[1765866991726,7.13561721,127.07,127.05,0.05529089]
[1765867010854,7.13561721,127.07,127.05,3.15529089]
[1765867011745,7.13561721,127.07,127.05,0.05529089]
[1765867017361,9.75214652,127.07,127.05,0.05529089]
[1765867018861,2.61668571,127.06,127.05,0.05529089]
[1765867021560,9.75230292,127.07,127.05,0.05529089]
[1765867021763,7.13561721,127.07,127.05,3.15529089]
[1765867028463,0.05121721,127.07,127.06,3.07]
[1765867030871,0.00121721,127.07,127.06,4.65]
[1765867031178,7.0824,127.11,127.07,3.07]
[1765867031371,7.0824,127.11,127.08,3.07]
[1765867031584,6.55691581,127.12,127.08,3.07]
[1765867031882,3.9402301,127.12,127.08,3.07]
[1765867032185,3.9402301,127.12,127.1,3.07]
[1765867049382,11.0219301,127.12,127.09,0.05120112]
[1765867049585,13.63861581,127.12,127.09,3.12120112]
[1765867051686,7.0821,127.11,127.09,3.12120112]
[1765867052290,9.69878571,127.11,127.09,0.05120112]
[1765867060298,7.0821,127.11,127.09,3.28120112]
[1765867060789,6.55691581,127.12,127.09,3.28120112]
[1765867061599,3.9402301,127.12,127.09,3.28120112]
[1765867062591,3.9402301,127.12,127.1,3.23]
[1765867065006,11.0219301,127.12,127.1,3.23]
[1765867075104,3.9402301,127.12,127.1,3.23]
[1765867084907,11.0217301,127.12,127.09,28.05120112]
[1765867085314,11.0217301,127.12,127.09,31.21120112]
[1765867088414,11.0217301,127.12,127.09,3.21120112]
[1765867090111,3.9402301,127.12,127.09,3.21120112]
[1765867090505,3.9402301,127.12,127.1,3.16]
[1765867090710,224.27183146,127.2,127.12,3.16]
[1765867091019,220.1874,127.2,127.15,0.05693521]
[1765867091909,7.0785,127.18,127.15,0.05693521]
[1765867093006,7.0787,127.17,127.15,0.05693521]
[1765867102418,110.0806,127.21,127.16,3.16]
[1765867102619,5.7299304,127.2,127.17,0.06022234]
[1765867102818,114.16503146,127.21,127.17,0.06022234]
[1765867103014,5.72963664,127.2,127.17,0.06022234]
[1765867103217,7.0781,127.18,127.17,0.06022234]
[1765867107818,7.0802,127.15,127.12,3.16]
[1765867108015,110.1133,127.17,127.12,3.16]
[1765867108724,7.0804,127.14,127.12,3.16]
[1765867108930,7.1381745,127.14,127.12,3.21024442]
[1765867111132,7.1381745,127.14,127.12,0.05024442]
[1765867117532,73.9981745,127.14,127.12,0.05024442]
[1765867117835,110.1604,127.12,127.08,3.11]
[1765867118825,0.05395655,127.11,127.09,0.05956892]
[1765867119026,7.083,127.1,127.09,3.32956892]
[1765867122937,7.083,127.1,127.09,0.05956892]
[1765867131050,7.083,127.1,127.09,3.32956892]
[1765867131650,7.083,127.1,127.09,0.05956892]
[1765867132156,7.083,127.1,127.09,3.32956892]
[1765867136562,7.13635655,127.11,127.09,3.32956892]
[1765867141365,7.13635655,127.11,127.1,5.88275053]
[1765867142569,7.13635655,127.11,127.1,3.27]
[1765867144167,0.05395655,127.11,127.1,3.27]
[1765867144568,112.72485053,127.18,127.1,3.27]
[1765867144769,7.0802,127.15,127.13,3.3]
[1765867145466,7.0802,127.15,127.13,3.35806285]
[1765867145467,7.13676308,127.15,127.13,3.35806285]
[1765867146872,0.05656308,127.15,127.13,3.35806285]
[1765867150873,7.0785,127.18,127.15,3.3]
[1765867151574,7.0785,127.18,127.15,5.91275053]
[1765867151878,7.0785,127.18,127.16,3.3]
[1765867152069,7.0785,127.18,127.16,3.35019704]
[1765867154065,7.0774,127.2,127.16,3.35019704]
[1765867162671,7.0778,127.19,127.16,3.35019704]
[1765867162863,2.61070445,127.18,127.16,0.05019704]
[1765867163469,7.0782,127.18,127.16,0.05019704]
[1765867163670,7.0782,127.18,127.16,3.35019704]
[1765867165271,9.68890445,127.18,127.16,0.05019704]
[1765867166372,7.0782,127.18,127.16,0.05019704]
[1765867166669,9.68890445,127.18,127.16,0.05019704]
[1765867169782,110.1241,127.16,127.11,70.16]
[1765867170075,2.61070445,127.15,127.11,70.16]
[1765867170478,7.0812,127.13,127.11,70.16]
[1765867170875,9.75125251,127.13,127.11,70.21026908]
[1765867171382,7.14054806,127.13,127.11,70.21026908]
[1765867173291,2.61070445,127.12,127.11,0.05026908]
[1765867180187,7.14054806,127.13,127.11,0.05026908]
[1765867180389,9.75125251,127.13,127.11,0.05026908]
[1765867193492,7.14054806,127.13,127.11,0.05026908]
[1765867193702,9.75125251,127.13,127.11,0.05026908]
[1765867196595,76.63125251,127.13,127.11,0.05026908]
[1765867201514,74.02054806,127.13,127.11,0.05026908]
[1765867207820,7.0814,127.12,127.11,0.05026908]
[1765867219058,7.0814,127.12,127.11,3.11026908]
[1765867219347,7.14054806,127.13,127.11,0.05026908]
[1765867220447,7.14054806,127.13,127.11,3.11026908]
[1765867223959,0.05934806,127.13,127.11,3.11026908]
[1765867225748,7.14034806,127.13,127.11,0.05026908]
[1765867233365,7.14034806,127.13,127.11,3.18026908]
[1765867236162,7.0829,127.1,127.06,14.49376589]
[1765867236461,7.0829,127.1,127.06,42.49376589]
[1765867237061,0.05734883,127.09,127.07,0.05895381]
[1765867237463,0.05734883,127.09,127.07,14.5527197]
[1765867237662,0.05734883,127.09,127.07,0.05895381]
[1765867238066,0.05734883,127.09,127.08,3.16]
[1765867243672,7.082,127.12,127.08,3.16]
[1765867244570,0.05226831,127.11,127.08,3.16]
[1765867252976,7.13446831,127.11,127.08,3.16]
[1765867264578,7.0828,127.1,127.08,3.16]
[1765867273288,0.05226831,127.11,127.09,3.19]
[1765867273794,7.13426831,127.11,127.09,3.19]
[1765867282496,0.05226831,127.11,127.1,5.80405452]
[1765867284595,0.05226831,127.11,127.09,3.19]
[1765867285595,7.13436831,127.11,127.09,3.19]
[1765867285797,7.13436831,127.11,127.08,31.19]
[1765867286506,9.7488628,127.11,127.08,28.0]
[1765867287008,9.7488628,127.11,127.08,31.19]
[1765867290401,9.7488628,127.11,127.08,3.19]
[1765867292110,7.13436831,127.11,127.08,3.19]
[1765867292516,7.13436831,127.11,127.09,3.36]
[1765867293110,7.0826,127.1,127.08,5.76449449]
[1765867298914,0.05226831,127.11,127.08,5.76449449]
[1765867299412,0.05226831,127.11,127.09,3.15]
[1765867300814,7.13426831,127.11,127.09,3.15]
[1765867301712,0.05226831,127.11,127.09,3.15]
[1765867310027,7.13436831,127.11,127.09,3.15]
[1765867317429,7.13436831,127.11,127.07,14.5527197]
[1765867317628,110.21856831,127.11,127.08,3.15]
[1765867318727,7.0837,127.08,127.07,3.20895381]
[1765867320633,7.0837,127.08,127.07,0.05895381]
[1765867321033,9.69819449,127.08,127.07,0.05895381]
[1765867322428,7.0862,127.04,127.01,3.29]
[1765867323426,7.14534429,127.04,127.01,3.3440563]
[1765867324026,7.0865,127.03,127.01,3.3440563]
[1765867325735,7.0865,127.03,127.01,0.0540563]
[1765867326132,7.0865,127.03,127.01,3.3440563]
[1765867332032,0.05914429,127.04,127.01,3.3440563]
[1765867332234,0.05914429,127.04,127.02,3.29]
[1765867341846,7.14544429,127.04,127.02,3.29]
[1765867342545,7.0864,127.03,127.02,3.29]
[1765867342946,0.05914429,127.04,127.01,31.3440563]
[1765867343744,7.0864,127.03,127.02,3.29]
[1765867346748,0.05914429,127.04,127.01,3.3440563]
[1765867347542,7.087,127.02,127.01,3.3440563]
[1765867349750,7.087,127.02,127.01,0.0540563]
[1765867362861,7.0902,126.97,126.95,3.38]
[1765867363658,7.14766944,126.97,126.95,3.44005457]
[1765867369771,0.05746944,126.97,126.95,3.44005457]
[1765867379066,0.05746944,126.97,126.95,0.06005457]
[1765867379982,7.14736944,126.97,126.95,0.06005457]
[1765867380983,7.0904,126.96,126.95,0.06005457]
[1765867381182,7.0904,126.96,126.95,3.44005457]